bitfinex/quotes_ETHUSD_20241024
["timestamp","ask_amount","ask_price","bid_price","bid_amount"]
[1729786495507,3.97743,2514.2,2513.8,0.7969]
[1729786495669,7.95493,2514.2,2513.8,0.7969]
[1729786496011,3.97743,2514.2,2513.8,0.7969]
[1729786498159,3.97722,2514.4,2513.8,0.87645152]
[1729786498364,3.97733,2514.3,2513.8,2.32645673]
[1729786499100,3.97733,2514.3,2513.8,2.40600826]
[1729786500273,1.23803397,2514.6,2514.3,0.8066]
[1729786500488,5.21466397,2514.7,2514.3,0.8066]
[1729786500816,1.23803397,2514.6,2513.9,0.8066]
[1729786501104,3.97732,2514.3,2513.9,0.8066]
[1729786501925,7.95469,2514.3,2513.9,0.8066]
[1729786502124,3.97732,2514.3,2513.9,0.8066]
[1729786502430,3.97741,2514.2,2513.9,0.8066]
[1729786502606,3.97797,2513.9,2513.7,0.9502015]
[1729786502779,3.97797,2513.9,2513.7,0.1300015]
[1729786502780,3.97804,2513.8,2513.7,0.1300015]
[1729786502985,0.8148,2514.1,2513.7,0.1300015]
[1729786503214,3.97804,2513.8,2513.7,0.1300015]
[1729786503511,3.97794,2513.9,2513.7,0.1300015]
[1729786503716,0.479274,2513.9,2513.7,0.1300015]
[1729786503887,4.79246,2514.1,2513.7,0.1300015]
[1729786504285,3.97782,2514.0,2513.7,0.1300015]
[1729786504479,1.23803397,2514.3,2513.9,3.97776]
[1729786504708,1.23803397,2514.5,2514.1,3.97746]
[1729786505018,5.21466397,2514.7,2514.4,0.7973]
[1729786505220,3.97663,2514.7,2514.4,0.7973]
[1729786505818,1.23803397,2514.8,2514.4,0.7973]
[1729786505999,5.21450397,2514.8,2514.4,0.7973]
[1729786506416,3.97664,2514.7,2514.4,0.7973]
[1729786506584,3.97677,2514.6,2514.4,0.7973]
[1729786507229,5.21465397,2514.7,2514.4,0.7973]
[1729786507431,1.23803397,2514.7,2514.4,0.7973]
[1729786507586,3.0,2515.2,2514.4,0.7973]
[1729786507796,0.01,2515.7,2514.5,0.07953734]
[1729786507797,3.97627,2515.0,2514.5,0.07953734]
[1729786508126,3.97627,2515.0,2514.4,0.7973]
[1729786508311,3.97652,2514.8,2514.4,0.7973]
[1729786508624,3.97652,2514.8,2514.0,0.7704]
[1729786508625,3.9772,2514.4,2514.0,0.7704]
[1729786509018,5.21689237,2514.6,2514.0,4.74812]
[1729786509214,3.97688,2514.6,2514.1,0.48276686]
[1729786509425,3.97686,2514.6,2514.1,0.48276686]
[1729786509633,1.24001237,2514.6,2514.0,3.7704]
[1729786509963,3.97683,2514.6,2514.0,3.7704]
[1729786510265,3.97709,2514.4,2514.0,0.7704]
[1729786510629,5.21693237,2514.6,2514.0,0.7704]
[1729786510630,5.21701237,2514.5,2514.0,0.7704]
[1729786510959,5.21691237,2514.6,2514.0,0.7704]
[1729786511114,3.97709,2514.5,2514.0,0.7704]
[1729786511313,3.97733,2514.3,2514.0,0.7704]
[1729786511628,3.97733,2514.3,2513.8,3.0]
[1729786511629,3.97751,2514.2,2513.8,0.7532]
[1729786511947,3.97751,2514.2,2513.7,0.1300015]
[1729786511948,3.97804,2513.8,2513.7,0.1300015]
[1729786513728,3.97781,2514.0,2513.7,0.1300015]
[1729786514066,1.24001237,2514.1,2513.7,0.1300015]
[1729786514222,3.97757,2514.1,2513.8,0.7903]
[1729786514424,5.21743237,2514.2,2513.8,0.7903]
[1729786514901,3.97761,2514.1,2513.8,0.7903]
[1729786515070,3.97761,2514.1,2513.7,0.1300015]
[1729786515071,3.97773,2514.0,2513.7,0.1300015]
[1729786515427,1.24001237,2514.2,2513.7,0.1300015]
[1729786515634,3.97741,2514.2,2513.7,4.1081215]
[1729786515841,1.24001237,2514.2,2513.7,4.1081215]
[1729786516059,3.97759,2514.1,2513.7,0.1300015]
[1729786517470,7.95526,2514.1,2513.7,0.1300015]
[1729786517839,3.97796,2513.9,2513.7,0.1300015]
[1729786518362,1.74382724,2514.1,2513.7,0.1300015]
[1729786518363,5.72148724,2514.1,2513.7,0.1300015]
[1729786518590,3.97775,2514.0,2513.7,0.1300015]
[1729786518763,3.97796,2513.9,2513.7,0.1300015]
[1729786518969,1.24001237,2514.2,2513.7,0.1300015]
[1729786518970,3.9774,2514.2,2513.7,0.1300015]
[1729786519160,3.97757,2514.1,2513.7,0.1300015]
[1729786519481,5.21738237,2514.3,2513.7,0.62457653]
[1729786519690,3.97757,2514.1,2513.7,0.1300015]
[1729786520050,3.97741,2514.2,2513.7,0.1300015]
[1729786520281,3.97765,2514.1,2513.7,0.1300015]
[1729786520449,3.97774,2514.0,2513.7,0.1300015]
[1729786521292,1.24001237,2514.2,2513.7,4.18769589]
[1729786521504,1.24001237,2514.4,2514.0,3.97769]
[1729786521698,5.21688237,2514.6,2514.1,0.85174523]
[1729786521848,5.21688237,2514.6,2514.1,4.74976]
[1729786522188,1.65334983,2514.7,2514.1,4.74969]
[1729786522189,5.21665237,2514.7,2514.1,4.74969]
[1729786522488,3.97678,2514.6,2514.1,0.7722]
[1729786522694,3.97678,2514.6,2514.1,1.644967]
[1729786522839,5.21665237,2514.7,2514.1,5.622507]
[1729786522840,5.21671237,2514.7,2514.1,5.622507]
[1729786523351,5.21662237,2514.7,2514.1,1.644967]
[1729786523573,3.9768,2514.6,2514.1,5.622517]
[1729786523762,5.21665237,2514.7,2514.1,5.622417]
[1729786523956,5.21665237,2514.7,2514.2,0.5622417]
[1729786524581,9.19335237,2514.7,2514.2,0.5622417]
[1729786524908,5.21665237,2514.7,2514.2,0.5622417]
[1729786525201,9.19339237,2514.7,2514.2,0.5622417]
[1729786525418,1.24001237,2514.7,2514.3,0.7839]
[1729786525560,1.9776,2514.8,2514.4,8.09352428]
[1729786525784,1.9776,2514.8,2514.5,0.96726903]
[1729786525997,1.9776,2514.8,2514.4,0.7839]
[1729786526493,5.95407,2514.8,2514.4,0.7839]
[1729786527240,1.9776,2514.8,2514.4,0.7839]
[1729786527687,3.97669,2514.7,2514.4,0.7839]
[1729786527879,3.97669,2514.7,2514.1,3.0]
[1729786527880,3.97661,2514.7,2514.1,0.8316]
[1729786528027,3.97788,2513.9,2513.7,0.1300015]
[1729786528229,3.97804,2513.8,2513.7,0.1300015]
[1729786528542,3.97788,2513.9,2513.7,0.1300015]
[1729786529143,3.97804,2513.8,2513.7,0.1300015]
[1729786529559,3.97788,2513.9,2513.7,0.1300015]
[1729786529836,3.97798,2513.9,2513.7,0.1300015]
[1729786530074,4.375778,2513.9,2513.7,0.1300015]
[1729786530255,3.97804,2513.8,2513.7,0.1300015]
[1729786531137,4.80694,2513.8,2513.7,0.1300015]
[1729786531887,8.20593225,2513.8,2513.7,0.1300015]
[1729786532093,9.44255459,2513.8,2513.7,0.1300015]
[1729786532384,11.61273129,2513.8,2513.7,0.1300015]
[1729786532595,15.17273129,2513.8,2513.7,0.1300015]
[1729786532748,13.51938146,2513.8,2513.7,0.1300015]
[1729786533077,13.52938146,2513.8,2513.7,0.1300015]
[1729786533255,13.52938146,2513.8,2513.7,1.5e-06]
[1729786535261,13.52938146,2513.8,2513.0,0.005]
[1729786535262,3.97914,2513.1,2513.0,0.005]
[1729786535475,3.97914,2513.1,2513.0,1e-05]
[1729786535476,28.02118019,2513.1,2513.0,1e-05]
[1729786535773,8.04034,2512.6,2512.5,0.005]
[1729786535948,6.112926,2512.6,2512.5,0.005]
[1729786536146,4.53379338,2512.6,2512.5,0.005]
[1729786536383,5.5083575,2512.6,2512.5,0.005]
[1729786536750,3.98026,2512.4,2511.9,0.16]
[1729786536947,3.98009,2512.5,2511.9,0.16]
[1729786537403,3.9804,2512.4,2511.9,0.16]
[1729786538286,3.98009,2512.5,2511.9,0.16]
[1729786538488,3.98034,2512.4,2511.9,1.049537]
[1729786538791,7.9603,2512.5,2512.0,0.7612]
[1729786538950,3.98058,2512.2,2512.0,0.7612]
[1729786539149,3.9792,2513.1,2511.9,0.16]
[1729786539150,3.98073,2512.1,2511.9,0.16]
[1729786539483,4.04334838,2512.1,2511.9,0.16]
[1729786539779,3.98089,2512.0,2511.9,0.16]
[1729786540149,4.04385718,2512.0,2511.9,0.16]
[1729786540758,6.02145718,2512.0,2511.9,0.16]
[1729786541457,6.77204809,2512.0,2511.9,0.16]
[1729786541850,6.02145718,2512.0,2511.9,0.16]
[1729786545082,2.04056718,2512.0,2511.9,0.16]
[1729786545403,2.04056718,2512.0,2511.9,8.29695428]
[1729786547508,1.9776,2512.0,2511.9,11.30695428]
[1729786548020,1.65535267,2512.0,2511.9,11.30695428]
[1729786548224,3.97876,2513.4,2512.8,0.8029]
[1729786548372,3.97883,2513.3,2512.8,0.8029]
[1729786548573,4.03656692,2513.3,2512.8,0.8029]
[1729786549712,3.97906,2513.2,2512.8,0.8029]
[1729786550013,4.03557285,2513.2,2512.8,0.8029]
[1729786550375,8.01471285,2513.2,2512.6,3.97992]
[1729786550572,3.97975,2512.8,2512.3,0.8186]
[1729786551116,0.05626624,2512.7,2512.5,3.98001]
[1729786551277,3.97894,2513.3,2512.6,4.71120143]
[1729786551473,3.97894,2513.3,2512.7,3.97977]
[1729786551812,3.97894,2513.3,2512.7,4.05935518]
[1729786552012,3.97888,2513.3,2512.9,0.8186]
[1729786552226,0.7751,2513.5,2512.9,0.8186]
[1729786552379,3.97848,2513.6,2513.0,0.07958289]
[1729786552714,7.95634,2513.8,2513.1,3.97914]
[1729786552925,3.33260428,2513.8,2512.9,0.8186]
[1729786553079,3.97843,2513.6,2513.0,0.07957884]
[1729786553421,3.9782,2513.7,2513.1,3.97914]
[1729786553621,0.05510008,2513.5,2513.0,3.9793]
[1729786553780,4.03365225,2513.6,2513.0,7.95845]
[1729786553975,0.05497789,2513.4,2513.3,3.97883]
[1729786554212,0.05510008,2513.5,2513.3,3.97883]
[1729786554417,0.05470439,2513.4,2513.3,3.97883]
[1729786554630,0.05470439,2513.4,2513.3,1.21205243]
[1729786554813,3.97821,2513.7,2513.1,4.80924]
[1729786555010,0.05497789,2513.4,2513.1,4.80924]
[1729786555208,3.97821,2513.7,2513.1,4.80924]
[1729786555414,0.05485569,2513.3,2513.2,3.97898]
[1729786555613,0.4504,2514.2,2513.1,0.8301]
[1729786555809,0.05471894,2513.3,2513.1,4.80917]
[1729786556015,3.97819,2513.7,2513.1,6.02126543]
[1729786556210,0.05464232,2513.2,2513.1,6.02126543]
[1729786556444,3.97764,2514.1,2513.4,3.97856]
[1729786556646,3.97764,2514.1,2513.5,4.85028888]
[1729786556937,0.05569681,2514.0,2513.5,4.85036888]
[1729786557142,0.05569681,2514.0,2513.5,0.7923]
[1729786557441,0.05569681,2514.0,2513.6,0.07955887]
[1729786557604,4.03347681,2514.0,2513.6,0.07955887]
[1729786557804,4.03346681,2514.0,2513.5,0.7923]
[1729786558258,4.03346681,2514.0,2513.6,0.07955886]
[1729786558259,0.05569681,2514.0,2513.6,0.07955886]
[1729786558418,4.03349681,2514.0,2513.5,0.7923]
[1729786560531,3.97792,2513.9,2513.5,0.7923]
[1729786560826,0.05558069,2513.8,2513.5,0.7923]
[1729786561042,0.05558069,2513.8,2513.6,0.07955758]
[1729786561249,7.95557,2514.0,2513.5,0.7923]
[1729786561547,3.97773,2514.0,2513.5,0.7923]
[1729786561707,3.97773,2514.0,2513.5,4.7708]
[1729786561708,0.05533817,2513.9,2513.5,4.7708]
[1729786561906,3.97835,2513.6,2513.2,0.7923]
[1729786562111,0.05475834,2513.5,2513.2,0.7923]
[1729786562819,0.05475834,2513.5,2513.3,0.07957305]
[1729786563027,0.05475834,2513.5,2513.2,0.7923]
[1729786563213,3.97822,2513.7,2513.2,0.7923]
[1729786563411,0.05496563,2513.4,2513.2,0.7923]
[1729786563620,7.95656,2513.7,2513.2,0.7923]
[1729786563846,8.87450668,2513.7,2513.2,0.7923]
[1729786564008,0.05521001,2513.6,2513.2,0.7923]
[1729786564935,0.05521001,2513.6,2512.8,4.78464]
[1729786565134,3.97851,2513.5,2512.8,0.8051]
[1729786565309,3.9789,2513.3,2512.8,0.8051]
[1729786565503,0.05484375,2513.2,2512.8,0.8051]
[1729786565757,3.9789,2513.3,2512.8,0.88468188]
[1729786565941,0.05513144,2513.2,2512.8,0.88468188]
[1729786566158,3.9789,2513.3,2512.8,0.8051]
[1729786566453,0.05503075,2513.2,2513.0,3.97923]
[1729786566606,0.05503075,2513.2,2513.1,8.14571773]
[1729786566807,3.97798,2513.9,2513.3,3.97879]
[1729786567001,3.97773,2514.0,2513.4,3.97864]
[1729786567238,3.97767,2514.1,2513.3,3.97879]
[1729786567239,1.2349,2514.2,2513.6,0.7544]
[1729786567449,5.733606,2514.2,2513.6,0.7544]
[1729786567633,3.97756,2514.1,2513.6,0.7544]
[1729786567940,3.97802,2513.9,2513.6,0.7544]
[1729786568145,1.756126,2514.2,2513.2,0.7544]
[1729786568146,3.97829,2513.7,2513.2,0.7544]
[1729786568330,0.795633,2513.6,2513.2,0.7544]
[1729786568531,0.05551683,2513.5,2513.2,0.83397299]
[1729786568738,4.03406683,2513.5,2513.2,0.7544]
[1729786568934,0.05551683,2513.5,2513.2,0.7544]
[1729786569732,0.05551683,2513.5,2513.3,0.07957299]
[1729786569908,3.97818,2513.8,2513.2,4.73338]
[1729786570107,0.05577844,2513.7,2513.3,0.07956635]
[1729786570317,0.874355,2513.8,2513.2,4.73338]
[1729786570505,0.05571281,2513.7,2513.3,4.05838635]
[1729786570732,3.97797,2513.9,2513.3,3.97882]
[1729786570907,0.05581769,2513.8,2513.3,3.97882]
[1729786571108,3.97842,2513.6,2513.2,0.7544]
[1729786571341,0.0554512,2513.5,2513.2,0.7544]
[1729786571547,3.97868,2513.4,2513.2,0.7544]
[1729786571731,3.97943,2513.0,2512.5,0.7949]
[1729786571908,3.97947,2512.9,2512.5,0.7949]
[1729786572108,0.05452628,2512.8,2512.5,0.7949]
[1729786572309,3.97994,2512.6,2512.0,4.77578]
[1729786572544,3.9801,2512.5,2512.0,0.7949]
[1729786572707,3.98034,2512.4,2512.0,0.7949]
[1729786572911,0.0538944,2512.3,2512.0,0.7949]
[1729786573141,3.98011,2512.5,2512.0,0.7949]
[1729786573448,4.03308189,2512.4,2512.0,0.7949]
[1729786574129,4.03308189,2512.4,2512.0,0.87450688]
[1729786574309,0.05280189,2512.4,2512.0,0.87450688]
[1729786574511,3.98005,2512.6,2512.0,0.87450688]
[1729786574832,0.05413898,2512.5,2512.1,3.33260428]
[1729786575034,0.05413898,2512.5,2512.2,1.16452112]
[1729786575233,3.98,2512.6,2512.2,0.8233]
[1729786575434,3.33260428,2513.1,2512.2,0.8233]
[1729786575639,3.33260428,2513.1,2512.0,0.8233]
[1729786575640,3.98065,2512.2,2512.0,0.8233]
[1729786575807,3.98089,2512.0,2511.9,0.16]
[1729786576014,4.80799,2512.0,2511.9,0.16]
[1729786576208,5.74458343,2512.0,2511.9,0.16]
[1729786581269,5.74458343,2512.0,2511.6,0.005]
[1729786581270,3.98136,2511.7,2511.6,0.005]
[1729786581550,12.09602725,2511.7,2511.6,0.005]
[1729786583012,3.98215,2511.2,2511.1,0.1250015]
[1729786583218,9.03471229,2511.2,2511.1,0.1250015]
[1729786583450,9.08493853,2511.2,2511.1,0.1250015]
[1729786584514,4.03237624,2511.2,2511.1,0.1250015]
[1729786584723,0.05022624,2511.2,2511.1,0.1250015]
[1729786584937,3.98203,2511.3,2511.1,0.0750015]
[1729786585250,0.05117382,2511.2,2511.1,0.0750015]
[1729786585464,0.05117382,2511.2,2511.1,4.0573115]
[1729786585610,3.98114,2511.9,2511.3,3.98195]
[1729786585814,3.98091,2512.0,2511.4,0.7867]
[1729786586015,0.04881483,2511.8,2511.4,0.7867]
[1729786586311,0.04841877,2511.7,2511.4,0.7867]
[1729786586535,3.98122,2511.8,2511.4,0.7867]
[1729786586851,4.02992001,2511.7,2511.4,0.7867]
[1729786587053,0.04851001,2511.7,2511.4,0.7867]
[1729786587358,4.80825,2511.2,2511.1,0.0750015]
[1729786587568,4.85642185,2511.2,2511.1,0.0750015]
[1729786588448,4.03032185,2511.2,2511.1,0.0750015]
[1729786588758,5.96955604,2511.2,2511.1,0.0750015]
[1729786589050,4.03032185,2511.2,2511.1,0.0750015]
[1729786589756,0.04817185,2511.2,2511.1,0.0750015]
[1729786589968,3.98184,2511.4,2511.1,0.0750015]
[1729786590253,0.04788362,2511.3,2511.1,0.0750015]
[1729786590856,0.04788362,2511.3,2511.2,0.7584]
[1729786591152,0.04584109,2511.3,2511.2,0.7584]
[1729786591355,3.98162,2511.6,2511.2,0.7584]
[1729786591529,0.04542255,2511.5,2511.2,0.7584]
[1729786591722,3.98129,2511.8,2511.2,1.63820315]
[1729786591723,3.98139,2511.7,2511.2,1.63820315]
[1729786592074,0.04525454,2511.4,2511.2,1.63820315]
[1729786592281,3.9816,2511.6,2511.2,1.63820315]
[1729786592583,3.9816,2511.6,2511.2,0.7584]
[1729786592781,0.04555942,2511.5,2511.2,0.7584]
[1729786593300,3.98106,2511.9,2511.2,0.7584]
[1729786593447,4.27666229,2512.0,2511.2,0.7584]
[1729786593448,0.04516329,2511.4,2511.2,0.7584]
[1729786593787,0.04431704,2511.3,2511.2,0.7584]
[1729786593989,3.98112,2511.9,2511.2,0.7584]
[1729786594284,0.04308672,2511.3,2511.2,0.7584]
[1729786594746,3.98121,2511.8,2511.2,0.7584]
[1729786595085,3.98097,2512.0,2511.2,0.7584]
[1729786595086,0.04308672,2511.3,2511.2,0.7584]
[1729786595243,3.98106,2511.9,2511.2,0.7584]
[1729786595445,0.04273181,2511.3,2511.2,0.7584]
[1729786595639,0.04273181,2511.3,2511.2,4.74041]
[1729786595910,3.98106,2511.9,2511.3,3.98186]
[1729786596282,0.04369863,2511.8,2511.2,1.63817015]
[1729786596486,0.04369863,2511.8,2511.7,0.7904]
[1729786596779,0.04149805,2511.8,2511.7,0.7904]
[1729786596997,3.98073,2512.1,2511.7,0.7904]
[1729786597197,0.04071911,2512.0,2511.7,1.267582]
[1729786597382,3.98063,2512.2,2511.7,1.267582]
[1729786597585,0.0387464,2512.1,2511.7,1.267582]
[1729786597916,0.0387464,2512.1,2511.8,3.98109]
[1729786598300,0.0387464,2512.1,2511.7,5.248852]
[1729786598987,0.0387464,2512.1,2511.7,1.267582]
[1729786599191,4.0195164,2512.1,2511.7,0.7904]
[1729786599393,3.98096,2512.0,2511.7,0.7904]
[1729786599697,3.98096,2512.0,2511.5,3.98158]
[1729786599698,3.98128,2511.8,2511.5,0.7893]
[1729786599904,4.02061619,2511.9,2511.5,0.7893]
[1729786600213,3.98105,2512.0,2511.5,0.7893]
[1729786600425,0.03810219,2511.8,2511.5,0.7893]
[1729786600581,3.98086,2512.1,2511.5,4.77091]
[1729786600780,0.03834693,2512.0,2511.5,4.77091]
[1729786601316,0.03834693,2512.0,2511.6,3.98149]
[1729786601611,0.03834693,2512.0,2511.6,0.07962162]
[1729786601812,0.03834693,2512.0,2511.6,3.98147]
[1729786603499,0.03834693,2512.0,2511.5,5.646236]
[1729786603893,0.03834693,2512.0,2511.6,3.98152]
[1729786604094,0.03834693,2512.0,2511.6,3.98144]
[1729786604320,0.03834693,2512.0,2511.6,7.96287]
[1729786604532,0.03834693,2512.0,2511.6,0.9627436]
[1729786604682,0.03834693,2512.0,2511.7,0.8172]
[1729786604882,3.98069,2512.2,2511.7,0.8172]
[1729786605081,0.03486323,2511.9,2511.7,4.79849]
[1729786605430,3.98009,2512.5,2512.0,3.98088]
[1729786606021,3.97995,2512.6,2512.1,3.98063]
[1729786606234,3.97995,2512.6,2512.2,0.7779]
[1729786606723,3.98011,2512.5,2512.2,0.7779]
[1729786607427,3.97994,2512.6,2512.2,0.7779]
[1729786607719,3.9801,2512.5,2512.2,0.7779]
[1729786607925,0.397994,2512.6,2512.2,0.7779]
[1729786608144,3.97973,2512.8,2512.2,0.7779]
[1729786608482,3.9799,2512.7,2512.2,0.7779]
[1729786608705,3.9799,2512.7,2512.2,4.75846]
[1729786609793,3.9799,2512.7,2512.3,3.98041]
[1729786610807,3.97938,2513.0,2512.5,3.98009]
[1729786611043,5.20306223,2512.9,2512.4,3.98018]
[1729786611349,3.97983,2512.7,2512.3,3.9804]
[1729786612117,3.97965,2512.8,2512.3,3.9804]
[1729786612623,0.03748844,2512.7,2512.3,3.9804]
[1729786612811,3.97965,2512.8,2512.3,3.9804]
[1729786613014,0.03748844,2512.7,2512.4,3.98025]
[1729786613218,3.97951,2512.9,2512.2,0.7779]
[1729786613561,3.97978,2512.7,2512.3,3.9804]
[1729786614159,3.97965,2512.8,2512.3,3.9804]
[1729786615318,3.97949,2512.9,2512.4,4.05976672]
[1729786615520,0.03735245,2512.9,2512.6,3.97987]
[1729786615761,3.97923,2513.1,2512.6,3.97987]
[1729786616057,3.97923,2513.1,2512.5,0.7825]
[1729786616058,0.03499492,2513.0,2512.7,3.97965]
[1729786616427,0.03499492,2513.0,2512.6,3.97987]
[1729786616960,4.01441492,2513.0,2512.5,4.76257]
[1729786617332,4.01441492,2513.0,2512.5,8.74256]
[1729786617522,4.01441492,2513.0,2512.6,3.97993]
[1729786617523,0.03499492,2513.0,2512.6,3.97993]
[1729786618457,4.01432492,2513.0,2512.5,0.7825]
[1729786618763,4.01432492,2513.0,2512.1,3.9807]
[1729786618764,3.97962,2512.8,2512.2,0.7941]
[1729786618961,3.97988,2512.7,2512.2,0.7941]
[1729786619400,7.95977,2512.7,2512.2,0.7941]
[1729786619702,3.97988,2512.7,2512.2,4.85424152]
[1729786619896,4.75146,2512.9,2512.2,4.85424152]
[1729786619897,4.75146,2512.9,2512.3,3.98036]
[1729786620070,4.75146,2512.9,2512.4,3.98023]
[1729786620271,0.03478495,2512.8,2512.4,3.98023]
[1729786620472,3.97987,2512.7,2512.2,0.7941]
[1729786620702,4.89099445,2512.8,2512.2,0.7941]
[1729786620703,0.91136445,2512.8,2512.2,0.7941]
[1729786620861,0.91136445,2512.8,2511.6,7.29666229]
[1729786620862,0.7724,2512.4,2511.8,4.76271]
[1729786621198,3.98028,2512.4,2511.9,3.98101]
[1729786622061,0.8328,2512.7,2511.6,4.28666229]
[1729786622290,3.97988,2512.7,2512.2,0.8321]
[1729786622488,3.9798,2512.7,2512.2,4.81256]
[1729786624017,3.97993,2512.7,2512.2,1.313355]
[1729786624316,3.97975,2512.8,2512.2,0.8321]
[1729786624627,3.98002,2512.6,2512.2,0.8321]
[1729786624781,3.97962,2512.8,2512.2,0.8321]
[1729786624984,3.97962,2512.8,2511.4,3.99173]
[1729786624985,3.98057,2512.2,2511.8,0.7827]
[1729786625227,4.79944,2512.4,2511.8,4.76376]
[1729786625393,3.98013,2512.5,2511.9,0.07961042]
[1729786625584,3.98022,2512.5,2511.9,3.98098]
[1729786625924,3.98045,2512.3,2511.8,0.7827]
[1729786626123,3.98045,2512.3,2511.8,4.76388]
[1729786626436,3.98045,2512.3,2511.8,3.98118]
[1729786626590,3.97982,2512.7,2511.4,3.98183]
[1729786626591,3.98097,2512.0,2511.4,3.98183]
[1729786626791,3.98127,2511.8,2511.2,4.74906]
[1729786627132,7.96259,2511.8,2511.2,4.74906]
[1729786627284,3.98105,2511.9,2511.2,4.74906]
[1729786627488,3.98074,2512.1,2511.5,3.98161]
[1729786627729,3.98074,2512.1,2511.5,4.46701347]
[1729786627913,3.98074,2512.1,2511.6,0.07962471]
[1729786628512,3.98074,2512.1,2511.5,4.46701347]
[1729786628724,7.96156,2512.1,2511.5,4.46701347]
[1729786629023,3.98074,2512.1,2511.5,4.46701347]
[1729786629334,3.98074,2512.1,2511.5,8.44863347]
[1729786629530,0.80207794,2512.2,2511.6,1.00376395]
[1729786629824,7.96106,2512.3,2511.7,3.98133]
[1729786630324,3.98059,2512.2,2511.6,4.90558335]
[1729786630691,3.98059,2512.2,2511.6,8.88702335]
[1729786631030,3.98059,2512.2,2511.6,4.90558335]
[1729786631234,3.98059,2512.2,2511.7,0.49055833]
[1729786631895,0.7752,2512.5,2511.8,0.8187]
[1729786632115,3.9804,2512.4,2511.8,0.8187]
[1729786632316,3.9804,2512.4,2511.8,4.79982]
[1729786632732,3.98005,2512.6,2511.8,4.79982]
[1729786632733,3.98011,2512.5,2511.9,3.98102]
[1729786633037,3.98011,2512.5,2511.9,4.90815983]
[1729786633193,3.98011,2512.5,2512.0,3.98089]
[1729786633855,3.98005,2512.6,2512.1,0.7679]
[1729786634023,2.03726542,2512.9,2512.1,4.82820447]
[1729786634024,3.9798,2512.7,2512.1,4.82820447]
[1729786634364,4.7984918,2513.0,2512.5,4.74797]
[1729786634652,3.97937,2513.0,2512.5,0.7679]
[1729786635022,3.97937,2513.0,2512.5,4.74798]
[1729786635023,0.04018274,2513.0,2512.5,4.74798]
[1729786635205,0.04018274,2513.0,2512.7,3.97977]
[1729786635411,3.97908,2513.2,2512.6,3.97991]
[1729786635608,1.22646542,2513.4,2512.6,3.97991]
[1729786635850,3.97885,2513.3,2512.8,0.8153]
[1729786636030,2.44608723,2513.6,2512.8,4.79478]
[1729786636031,3.97876,2513.4,2512.8,4.79478]
[1729786636230,3.97876,2513.4,2512.9,0.877448]
[1729786636430,3.97896,2513.3,2512.9,0.877448]
[1729786636635,3.97896,2513.3,2512.8,0.8153]
[1729786637030,3.97869,2513.4,2512.8,4.7949]
[1729786637247,5.61082881,2513.6,2512.9,3.97944]
[1729786637444,3.97843,2513.6,2513.0,3.97926]
[1729786637611,4.79974881,2513.8,2513.2,3.97889]
[1729786637811,4.79946881,2513.9,2513.3,4.05837642]
[1729786638036,3.97774,2514.0,2513.2,3.97889]
[1729786638240,4.79924881,2514.1,2513.4,4.75004]
[1729786638449,5.24946881,2514.2,2513.5,3.97851]
[1729786638653,4.42789,2514.2,2513.6,3.97834]
[1729786639010,4.42789,2514.2,2513.6,0.8168]
[1729786639243,8.40542,2514.2,2513.6,0.8168]
[1729786639412,3.97847,2513.6,2513.3,0.8168]
[1729786639622,3.97793,2513.9,2513.0,0.8168]
[1729786639828,3.97875,2513.4,2513.0,0.8168]
[1729786640143,3.9782,2513.7,2513.1,3.97905]
[1729786640648,3.97789,2513.9,2513.2,3.97887]
[1729786641042,3.97789,2513.9,2513.3,0.7764]
[1729786641367,3.97852,2513.5,2513.3,0.7764]
[1729786641565,4.774198,2513.5,2513.3,0.7764]
[1729786641724,3.97852,2513.5,2513.3,0.7764]
[1729786642064,3.9787,2513.4,2513.0,0.7911]
[1729786642258,3.97852,2513.5,2513.0,0.7911]
[1729786642445,3.97871,2513.4,2513.0,0.7911]
[1729786643319,7.95717,2513.5,2513.0,0.7911]
[1729786643618,3.97868,2513.4,2513.1,0.0795742]
[1729786643825,4.77443,2513.4,2513.0,0.7911]
[1729786644018,3.97851,2513.5,2512.7,0.8094]
[1729786644275,0.8212,2513.6,2512.4,0.8094]
[1729786644276,5.09665891,2513.6,2512.4,0.8094]
[1729786644443,3.98821,2513.7,2511.9,4.79043]
[1729786644444,3.98025,2512.5,2511.9,4.79043]
[1729786644965,3.97994,2512.6,2511.9,4.79043]
[1729786645263,3.97994,2512.6,2512.0,0.877154]
[1729786645863,3.98022,2512.5,2512.0,0.877154]
[1729786646048,0.7517,2512.6,2511.9,0.8094]
[1729786646228,3.98009,2512.5,2511.9,0.8094]
[1729786646554,3.98032,2512.4,2511.9,0.8094]
[1729786647061,3.98011,2512.5,2511.9,0.8094]
[1729786647282,3.98011,2512.5,2511.9,4.87004006]
[1729786647571,3.98042,2512.3,2511.9,1.99453301]
[1729786647916,3.98026,2512.4,2511.9,1.99453301]
[1729786648114,3.98026,2512.4,2511.9,2.0741431]
[1729786648319,3.98004,2512.6,2511.9,6.0551731]
[1729786648619,0.8239,2512.9,2512.1,3.98066]
[1729786648620,3.97962,2512.8,2512.1,3.98066]
[1729786648766,5.28545789,2512.8,2512.1,3.98063]
[1729786648938,5.28545789,2512.8,2512.1,3.98062]
[1729786648939,3.97962,2512.8,2512.1,3.98062]
[1729786649142,7.95935,2512.8,2512.1,3.98062]
[1729786649340,3.9799,2512.7,2512.1,3.98062]
[1729786649728,3.9799,2512.7,2512.1,7.96126]
[1729786650239,3.97963,2512.8,2512.2,3.98056]
[1729786650427,3.97978,2512.7,2512.2,0.07959936]
[1729786650631,3.97978,2512.7,2511.9,5.97546301]
[1729786650827,3.98003,2512.6,2512.0,0.5975463]
[1729786651343,3.98018,2512.5,2511.9,4.79033]
[1729786651552,0.8239,2512.9,2511.9,0.8094]
[1729786651730,3.9804,2512.4,2511.9,0.8094]
[1729786651930,3.97981,2512.7,2511.9,0.8094]